fUST/lending_fUST_20240922
["ID","MTS","AMOUNT","RATE_DAILY","PERIOD"]
[338868052,1726956668099,-155.0,0.0003,2]
[338868053,1726956668109,-27570.36479372,0.0003,2]
[338868054,1726956668118,-250.0,0.0003,10]
[338868055,1726956668127,-2000.0,0.0003,10]
[338868056,1726956668137,-200.0,0.0003,2]
[338868057,1726956668146,-446.01021848,0.0003,30]
[338868058,1726956668156,-1378.1802396,0.0003,30]
[338868059,1726956668165,-2000.0,0.0003,120]
[338868060,1726956668174,-600.0,0.0003,60]
[338868061,1726956668184,-789.12,0.0003,120]
[338868062,1726956668193,-200.0,0.0003,120]
[338868063,1726956668203,-1042637.85057049,0.0003,7]
[338868064,1726956668212,-183677.91,0.0003,14]
[338868065,1726956668222,-5660.09700411,0.0003,120]
[338868066,1726956668232,-497.0,0.0003,2]
[338868067,1726956668243,-4087.91131389,0.0003,30]
[338868068,1726956668253,-300.0,0.0003,2]
[338868069,1726956668266,-300.0,0.0003,2]
[338868070,1726956668278,-374.8,0.0003,2]
[338868071,1726956668288,-151.0,0.0003,120]
[338868072,1726956668298,-151.0,0.0003,120]
[338868073,1726956668307,-1210.66841003,0.0003,3]
[338868074,1726956668316,-262.0,0.0003,2]
[338868075,1726956668325,-272.26855392,0.0003,2]
[338868076,1726956668336,-411.7313822,0.00030007,2]
[338868077,1726956668346,-411.7313822,0.00030007,2]
[338868078,1726956668356,-411.7313822,0.00030007,2]
[338868079,1726956668366,-411.7313822,0.00030007,2]
[338868080,1726956668376,-411.7313822,0.00030007,2]
[338868081,1726956668385,-1000.0,0.0003002,12]
[338868082,1726956668395,-200.0,0.00030103,120]
[338868083,1726956668404,-400.0,0.00030137,60]
[338868084,1726956668413,-200.0,0.00030245,120]
[338868085,1726956668422,-1500.0,0.00030273,42]
[338868086,1726956668431,-712.0,0.00030447,2]
[338868087,1726956668441,-700.0,0.000305,14]
[338868088,1726956668450,-338.0,0.00030561,2]
[338868089,1726956668459,-10599.54,0.000306,14]
[338868090,1726956668468,-186.55651233,0.0003065,2]
[338868091,1726956668478,-1500.0,0.00030682,42]
[338868092,1726956668487,-3500.0,0.00030742,5]
[338868093,1726956668496,-1000.0,0.00031,120]
[338868094,1726956668506,-36507.50200651,0.00031,120]
[338868095,1726956668515,-200.0,0.00031054,120]
[338868096,1726956668524,-3000.0,0.00031073,5]
[338868097,1726956668533,-1500.0,0.00031091,42]
[338868098,1726956668543,-151.0,0.00031096,120]
[338868099,1726956668553,-183677.91,0.000311,14]
[338868100,1726956668562,-1836.97,0.000311,14]
[338868101,1726956668571,-249.8598057,0.00031123,90]
[338868102,1726956668581,-383.01744,0.000313,120]
[338868103,1726956668591,-5273.4946,0.00031413,30]
[338868104,1726956668600,-3500.0,0.0003143,5]
[338868105,1726956668610,-1500.0,0.000315,42]
[338868106,1726956668619,-700.0,0.000315,14]
[338868107,1726956668629,-200.0,0.00031501,120]
[338868108,1726956668639,-464.0,0.0003166,120]
[338868109,1726956668648,-524.0,0.00031666,2]
[338868110,1726956668658,-150.0,0.00031666,2]
[338868111,1726956668667,-1216.0,0.00031666,2]
[338868112,1726956668676,-306.659354,0.00031726,2]
[338868113,1726956668686,-151.0,0.00031753,120]
[338868114,1726956668695,-1210.66841003,0.000318,3]
[338868115,1726956668705,-200.0,0.00031874,120]
[338868116,1726956668714,-1500.0,0.00031909,42]
[338868117,1726956668724,-200.0,0.00031916,120]
[338868118,1726956668733,-250.0,0.00032,10]
[338868119,1726956668742,-150.0,0.00032,30]
[338868120,1726956668751,-1000.0,0.00032,120]
[338868121,1726956668761,-4078.42,0.00032,7]
[338868122,1726956668771,-92621.68,0.00032,14]
[338868123,1726956668780,-250.972204,0.00032,30]
[338868124,1726956668789,-200.0,0.00032015,120]
[338868125,1726956668799,-336.85095849,0.0003212,10]
[338868126,1726956668808,-151.0,0.00032192,120]
[338868127,1726956668817,-600.0,0.000322,120]
[338868128,1726956668826,-1500.0,0.00032318,42]
[338868129,1726956668836,-182.73948227,0.00032438,120]
[338868130,1726956668847,-320.0,0.000325,2]
[338868131,1726956668859,-2664.2127,0.000325,10]
[338868132,1726956668871,-3473.9148,0.000325,6]
[338868133,1726956668882,-795.2249,0.000325,4]
[338868134,1726956668894,-82377.97839188,0.000325,25]
[338868135,1726956668905,-700.0,0.000325,16]
[338868136,1726956668915,-288.56,0.000325,120]
[338868137,1726956668925,-288.56,0.000325,120]
[338868138,1726956668934,-288.56,0.000325,120]
[338868139,1726956668943,-288.56,0.000325,120]
[338868140,1726956668954,-288.56,0.000325,120]
[338868141,1726956668964,-200.0,0.0003258,120]
[338868142,1726956668973,-153.0,0.00032714,2]
[338868143,1726956668982,-1500.0,0.00032727,42]
[338868144,1726956668991,-100000.0,0.000328,14]
[338868145,1726956669122,-710.12,0.00032876,30]
[338868146,1726956669134,-710.12,0.00032876,30]
[338868147,1726956669145,-710.12,0.00032876,30]
[338868148,1726956669155,-710.12,0.00032876,30]
[338868149,1726956669164,-710.12,0.00032876,30]
[338868150,1726956669174,-710.12,0.00032876,30]
[338868151,1726956669183,-710.12,0.00032876,30]
[338868152,1726956669194,-710.12,0.00032876,30]
[338868153,1726956669205,-710.12,0.00032876,30]
[338868154,1726956669215,-710.12,0.00032876,30]
[338868155,1726956669224,-710.12,0.00032876,30]
[338868156,1726956669234,-710.12,0.00032876,30]
[338868157,1726956669245,-710.12,0.00032876,30]
[338868158,1726956669255,-710.12,0.00032876,30]
[338868159,1726956669265,-710.12,0.00032876,30]
[338868160,1726956669277,-710.12,0.00032876,30]
[338868161,1726956669289,-710.12,0.00032876,30]
[338868162,1726956669300,-710.12,0.00032876,30]
[338868163,1726956669312,-710.12,0.00032876,30]
[338868164,1726956669324,-710.12,0.00032876,30]
[338868165,1726956669334,-710.12,0.00032876,30]
[338868166,1726956669345,-710.12,0.00032876,30]
[338868167,1726956669354,-710.12,0.00032876,30]
[338868168,1726956669365,-710.3187095,0.00032876,30]
[338868169,1726956669375,-1000.0,0.00032876,2]
[338868170,1726956669385,-1000.0,0.00032876,2]
[338868171,1726956669396,-1000.0,0.00032876,2]
[338868172,1726956669407,-1000.0,0.00032876,2]
[338868173,1726956669417,-533.07281998,0.00032876,2]
[338868174,1726956669427,-2000.0,0.00032876,2]
[338868175,1726956669436,-2000.0,0.00032876,2]
[338868176,1726956669446,-2000.0,0.00032876,2]
[338868177,1726956669456,-2000.0,0.00032876,2]
[338868178,1726956669467,-2000.0,0.00032876,2]
[338868179,1726956669476,-2000.0,0.00032876,2]
[338868180,1726956669485,-2000.0,0.00032876,2]
[338868181,1726956669495,-2000.0,0.00032876,2]
[338868182,1726956669505,-2000.0,0.00032876,2]
[338868183,1726956669515,-2000.0,0.00032876,2]
[338868184,1726956669525,-2000.0,0.00032876,2]
[338868185,1726956669535,-2000.0,0.00032876,2]
[338868186,1726956669546,-2000.0,0.00032876,2]
[338868187,1726956669557,-2000.0,0.00032876,2]
[338868188,1726956669567,-1047.91606114,0.00032876,2]
[338868189,1726956669576,-480.94034388,0.00032876,2]
[338868190,1726956669586,-418.97247633,0.00032876,2]
[338868191,1726956669596,-497.1675438,0.00032876,2]
[338868192,1726956669606,-212.01621701,0.00032876,2]
[338868193,1726956669618,-500.0,0.00032876,2]
[338868194,1726956669629,-186.79732824,0.00032876,2]
[338868195,1726956669639,-500.0,0.00032876,2]
[338868196,1726956669650,-500.0,0.00032876,2]
[338868197,1726956669660,-500.0,0.00032876,2]
[338868198,1726956669670,-500.0,0.00032876,2]
[338868199,1726956669680,-500.0,0.00032876,2]
[338868200,1726956669689,-581.27166614,0.00032876,2]
[338868201,1726956669700,-500.0,0.00032876,2]
[338868202,1726956669711,-500.0,0.00032876,2]
[338868203,1726956669722,-500.0,0.00032876,2]
[338868204,1726956669733,-500.0,0.00032876,2]
[338868205,1726956669744,-500.0,0.00032876,2]
[338868206,1726956669754,-500.0,0.00032876,2]
[338868207,1726956669763,-500.0,0.00032876,2]
[338868208,1726956669773,-500.0,0.00032876,2]
[338868209,1726956669782,-500.0,0.00032876,2]
[338868210,1726956669791,-500.0,0.00032876,2]
[338868211,1726956669801,-500.0,0.00032876,2]
[338868212,1726956669810,-500.0,0.00032876,2]
[338868213,1726956669821,-500.0,0.00032876,2]
[338868214,1726956669832,-500.0,0.00032876,2]
[338868215,1726956669843,-500.0,0.00032876,2]
[338868216,1726956669853,-500.0,0.00032876,2]
[338868217,1726956669863,-570.70679358,0.00032876,2]
[338868218,1726956669872,-500.0,0.00032876,2]
[338868219,1726956669882,-500.0,0.00032876,2]
[338868220,1726956669891,-500.0,0.00032876,2]
[338868221,1726956669901,-400.0,0.00032877,60]
[338868222,1726956669912,-100000.0,0.000329,14]
[338868223,1726956669922,-10000.0,0.000329,10]
[338868224,1726956669934,-879.0,0.000329,30]
[338868225,1726956669945,-864.14962784,0.00033,2]
[338868226,1726956669955,-100000.0,0.00033,14]
[338868227,1726956669964,-150.0,0.00033,30]
[338868228,1726956669974,-1000.0,0.00033,120]
[338868229,1726956669984,-852.526723,0.00033,120]
[338868230,1726956669994,-2099.07526483,0.00033,120]
[338868231,1726956670004,-150.0,0.00033,14]
[338868232,1726956670015,-92139.65775105,0.00033,7]
[338868296,1726957832177,-257.17,0.000154,2]
[338868298,1726957832188,-1931.01122135,0.00016189,2]
[338868300,1726957832201,-4350.92455896,0.00016189,2]
[338868305,1726957832240,-1223.83335339,0.00016189,2]
[338868307,1726957832251,-263.23722699,0.00016189,2]
[338868309,1726957832262,-2213.92567961,0.00016189,2]
[338868311,1726957832273,-300.0,0.00016239,2]
[338868313,1726957832283,-1087.53109463,0.000167,2]
[338868315,1726957832292,-203.453152,0.0001685,2]
[338868632,1726959036062,-231.46,0.000155,2]
[338868634,1726959036072,-284.6727671,0.00016542,2]
[338868635,1726959036157,-1200.00396455,0.00016542,2]
[338868636,1726959036169,-5655.79921594,0.00016542,2]
[338868637,1726959036179,-300.0,0.00016988,2]
[338868638,1726959036189,-300.0,0.00016988,2]
[338868639,1726959036199,-5252.54462622,0.00016989,3]
[338868771,1726959046521,-951.14854715,0.00016989,3]
[338868823,1726960233013,-208.31,0.00016,2]
[338868824,1726960233024,-1991.69,0.00016,2]
[338868902,1726960240735,-332.12978778,0.00015908,2]
[338868903,1726960240746,-1008.31,0.00016,2]
[338868904,1726960240756,-500.0,0.00016007,2]
[338868905,1726960240768,-216.0,0.00016007,2]
[338868906,1726960240778,-1496.97,0.00016007,2]
[338868907,1726960240787,-500.0,0.00016007,2]
[338868908,1726960240797,-38751.60696803,0.00016008,3]
[338868909,1726960240807,-87246.76735766,0.00016008,3]
[338868910,1726960240817,-30903.659881,0.00016008,2]
[338868911,1726960240827,-1249.38506138,0.00016008,2]
[338868912,1726960240836,-61807.319762,0.00016008,2]
[338868913,1726960240846,-2498.77012276,0.00016008,2]
[338868914,1726960240856,-30903.659881,0.00016009,2]
[338868915,1726960240865,-1249.38506138,0.00016009,2]
[338868916,1726960240876,-3000.0,0.0001601,2]
[338868917,1726960240885,-500.0,0.00016017,2]
[338868918,1726960240895,-500.0,0.00016017,2]
[338868919,1726960240905,-3000.0,0.0001602,2]
[338868920,1726960240914,-500.0,0.00016027,2]
[338868921,1726960240924,-500.0,0.00016027,2]
[338868922,1726960240934,-602.48346368,0.00016027,2]
[338868923,1726960240944,-500.0,0.00016027,2]
[338868924,1726960240953,-500.0,0.00016027,2]
[338868925,1726960240963,-500.0,0.00016027,2]
[338868926,1726960240973,-718.86,0.00016027,2]
[338868927,1726960240982,-500.0,0.00016027,2]
[338868928,1726960240992,-500.0,0.00016027,2]
[338868929,1726960241002,-500.0,0.00016027,2]
[338868930,1726960241011,-500.0,0.00016027,2]
[338868931,1726960241021,-500.0,0.00016027,2]
[338868932,1726960241031,-500.0,0.00016027,2]
[338868933,1726960241040,-500.0,0.00016027,2]
[338868934,1726960241050,-310.21019588,0.00016027,2]
[338868935,1726960241061,-500.0,0.00016027,2]
[338868936,1726960241071,-533.11,0.00016027,2]
[338868937,1726960241080,-500.0,0.00016027,2]
[338868938,1726960241089,-855.85,0.00016027,2]
[338868939,1726960241104,-500.0,0.00016027,2]
[338868940,1726960241114,-500.0,0.00016027,2]
[338868941,1726960241123,-3000.0,0.0001603,2]
[338868942,1726960241133,-61807.319762,0.0001603,2]
[338868943,1726960241143,-2498.77012276,0.0001603,2]
[338868944,1726960241153,-3000.0,0.0001604,2]
[338868945,1726960241163,-3000.0,0.0001605,2]
[338868946,1726960241173,-3000.0,0.0001606,2]
[338868947,1726960241183,-3000.0,0.0001607,2]
[338868948,1726960241192,-3000.0,0.0001608,2]
[338868949,1726960241202,-3000.0,0.0001609,2]
[338868950,1726960241211,-3000.0,0.000161,2]
[338868951,1726960241221,-300.0,0.000161,6]
[338868952,1726960241231,-3000.0,0.0001611,2]
[338868953,1726960241241,-3000.0,0.0001612,2]
[338868954,1726960241250,-61807.319762,0.0001612,2]
[338868955,1726960241260,-2498.77012276,0.0001612,2]
[338868956,1726960241269,-3000.0,0.0001613,2]
[338868957,1726960241279,-3000.0,0.0001614,2]
[338868958,1726960241291,-3000.0,0.0001615,2]
[338868959,1726960241301,-3000.0,0.0001616,2]
[338868960,1726960241310,-3000.0,0.0001617,2]
[338868961,1726960241320,-500.0,0.00016173,2]
[338868962,1726960241330,-500.0,0.00016173,2]
[338868963,1726960241339,-500.0,0.00016173,2]
[338868964,1726960241350,-500.0,0.00016173,2]
[338868965,1726960241360,-3000.0,0.0001618,2]
[338868966,1726960241369,-3000.0,0.0001619,2]
[338868967,1726960241379,-1249.38506138,0.0001619,2]
[338868968,1726960241389,-3000.0,0.000162,2]
[338868969,1726960241399,-3000.0,0.0001621,2]
[338868970,1726960241410,-1249.38506138,0.0001621,2]
[338868971,1726960241421,-3000.0,0.0001622,2]
[338868972,1726960241432,-3000.0,0.0001623,2]
[338868973,1726960241443,-3000.0,0.0001624,2]
[338868974,1726960241453,-3000.0,0.0001625,2]
[338868975,1726960241462,-3000.0,0.0001626,2]
[338868976,1726960241472,-3000.0,0.0001627,2]
[338868977,1726960241481,-3000.0,0.0001628,2]
[338868978,1726960241492,-171.12430296,0.00016281,2]
[338868979,1726960241501,-1496.97,0.00016281,2]
[338868980,1726960241510,-500.0,0.00016281,2]
[338868981,1726960241520,-3000.0,0.0001629,2]
[338868982,1726960241529,-500.0,0.00016291,2]
[338868983,1726960241538,-500.0,0.00016291,2]
[338868984,1726960241547,-3000.0,0.000163,2]
[338868985,1726960241556,-500.0,0.00016301,2]
[338868986,1726960241566,-500.0,0.00016301,2]
[338868987,1726960241576,-500.0,0.00016301,2]
[338868988,1726960241585,-500.0,0.00016301,2]
[338868989,1726960241594,-500.0,0.00016301,2]
[338868990,1726960241604,-718.86,0.00016301,2]
[338868991,1726960241613,-500.0,0.00016301,2]
[338868992,1726960241623,-500.0,0.00016301,2]
[338868993,1726960241639,-500.0,0.00016301,2]
[338868994,1726960241651,-500.0,0.00016301,2]
[338868995,1726960241663,-500.0,0.00016301,2]
[338868996,1726960241675,-500.0,0.00016301,2]
[338868997,1726960241687,-500.0,0.00016301,2]
[338868998,1726960241699,-533.11,0.00016301,2]
[338868999,1726960241715,-500.0,0.00016301,2]
[338869000,1726960241726,-855.85,0.00016301,2]
[338869001,1726960241739,-500.0,0.00016301,2]
[338869002,1726960241752,-500.0,0.00016301,2]
[338869003,1726960241763,-3000.0,0.0001631,2]
[338869004,1726960241774,-2498.77012276,0.0001631,2]
[338869005,1726960241785,-3000.0,0.0001632,2]
[338869006,1726960241795,-3000.0,0.0001633,2]
[338869007,1726960241806,-3000.0,0.0001634,2]
[338869008,1726960241817,-3000.0,0.0001635,2]
[338869009,1726960241828,-1249.38506138,0.0001635,2]
[338869010,1726960241838,-3000.0,0.0001636,2]
[338869011,1726960241849,-3000.0,0.0001637,2]
[338869012,1726960241859,-1249.38506138,0.0001637,2]
[338869013,1726960241871,-500.0,0.00016373,2]
[338869014,1726960241881,-500.0,0.00016373,2]
[338869015,1726960241893,-500.0,0.00016379,2]
[338869016,1726960241905,-152.04584445,0.00016379,2]
[338869017,1726960241915,-3000.0,0.0001638,2]
[338869018,1726960241926,-3000.0,0.0001639,2]
[338869019,1726960241937,-3000.0,0.000164,2]
[338869020,1726960241949,-2324.62224471,0.0001641,2]
[338869038,1726960246717,-500.0,0.00016027,2]
[338869039,1726960246728,-500.0,0.00016301,2]
[338869040,1726960246740,-94.8872754,0.0001641,2]
[338869075,1726961431726,-300.0,0.00015058,2]
[338869076,1726961431737,-300.0,0.00015058,2]
[338869077,1726961431746,-17759.12403398,0.00015059,2]
[338869113,1726961439848,-10.00000002,0.00015059,2]
[338869115,1726961439858,-290.61356436,0.00015899,2]
[338869117,1726961439869,-7140.47594759,0.00015989,2]
[338869119,1726961439878,-171.12430296,0.00015997,2]
[338869121,1726961439887,-500.0,0.00015997,2]
[338869123,1726961439897,-500.0,0.00015997,2]
[338869125,1726961439906,-1434.6,0.00015997,2]
[338869127,1726961439915,-500.0,0.00015997,2]
[338869129,1726961439925,-500.0,0.00015998,2]
[338869131,1726961439936,-500.0,0.00015998,2]
[338869133,1726961439945,-500.0,0.00015998,2]
[338869135,1726961439955,-510.9,0.00015998,2]
[338869137,1726961439964,-500.0,0.00015999,2]
[338869139,1726961439974,-688.9,0.00015999,2]
[338869141,1726961439984,-500.0,0.00015999,2]
[338869143,1726961439993,-500.0,0.00015999,2]
[338869146,1726961440003,-500.0,0.00015999,2]
[338869148,1726961440012,-500.0,0.00015999,2]
[338869149,1726961440022,-3000.0,0.00016,2]
[338869152,1726961440031,-3000.0,0.0001601,2]
[338869154,1726961440041,-3000.0,0.0001602,2]
[338869156,1726961440050,-3000.0,0.0001603,2]
[338869157,1726961440060,-500.0,0.00016038,2]
[338869159,1726961440069,-500.0,0.00016038,2]
[338869161,1726961440078,-500.0,0.00016038,2]
[338869163,1726961440088,-500.0,0.00016039,2]
[338869165,1726961440097,-500.0,0.00016039,2]
[338869167,1726961440107,-820.19,0.00016039,2]
[338869169,1726961440116,-500.0,0.00016039,2]
[338869171,1726961440126,-500.0,0.00016039,2]
[338869173,1726961440135,-500.0,0.00016039,2]
[338869175,1726961440145,-500.0,0.00016039,2]
[338869177,1726961440155,-500.0,0.00016039,2]
[338869179,1726961440165,-500.0,0.00016039,2]
[338869181,1726961440174,-500.0,0.00016039,2]
[338869183,1726961440184,-339.55691879,0.00016039,2]
[338869186,1726961440194,-3000.0,0.0001604,2]
[338869188,1726961440204,-3000.0,0.0001605,2]
[338869190,1726961440213,-3000.0,0.0001606,2]
[338869192,1726961440222,-3000.0,0.0001607,2]
[338869194,1726961440232,-3000.0,0.0001608,2]
[338869196,1726961440242,-3000.0,0.0001609,2]
[338869198,1726961440252,-187.48,0.000161,2]
[338869200,1726961440262,-3000.0,0.000161,2]
[338869202,1726961440272,-3000.0,0.0001611,2]
[338869204,1726961440282,-3000.0,0.0001612,2]
[338869206,1726961440292,-3000.0,0.0001613,2]
[338869208,1726961440301,-150.0,0.00016135,2]
[338869210,1726961440311,-3000.0,0.0001614,2]
[338869212,1726961440320,-3000.0,0.0001615,2]
[338869214,1726961440329,-3000.0,0.0001616,2]
[338869216,1726961440339,-3000.0,0.0001617,2]
[338869218,1726961440348,-3000.0,0.0001618,2]
[338869220,1726961440358,-151.0,0.0001618,2]
[338869222,1726961440369,-21632.5619167,0.0001618,2]
[338869224,1726961440378,-687.16178375,0.0001618,2]
[338869226,1726961440390,-3000.0,0.0001619,2]
[338869228,1726961440400,-3000.0,0.000162,2]
[338869230,1726961440409,-3000.0,0.0001621,2]
[338869232,1726961440418,-3000.0,0.0001622,2]
[338869234,1726961440428,-3000.0,0.0001623,2]
[338869236,1726961440437,-3000.0,0.0001624,2]
[338869238,1726961440447,-3000.0,0.0001625,2]
[338869241,1726961440457,-151.0,0.0001625,2]
[338869243,1726961440467,-151.0,0.0001625,2]
[338869245,1726961440476,-151.0,0.0001625,2]
[338869247,1726961440486,-3000.0,0.0001626,2]
[338869249,1726961440495,-151.0,0.0001626,2]
[338869251,1726961440505,-151.0,0.0001626,2]
[338869253,1726961440515,-151.0,0.0001626,2]
[338869255,1726961440524,-151.0,0.0001626,2]
[338869257,1726961440533,-151.0,0.0001626,2]
[338869259,1726961440542,-151.0,0.0001626,2]
[338869261,1726961440551,-3000.0,0.0001627,2]
[338869263,1726961440561,-500.0,0.00016271,2]
[338869264,1726961440572,-151.0,0.00016271,2]
[338869266,1726961440581,-1434.6,0.00016271,2]
[338869268,1726961440591,-500.0,0.00016271,2]
[338869270,1726961440601,-500.0,0.00016272,2]
[338869272,1726961440610,-500.0,0.00016272,2]
[338869274,1726961440620,-510.9,0.00016272,2]
[338869276,1726961440638,-500.0,0.00016273,2]
[338869278,1726961440648,-688.9,0.00016273,2]
[338869280,1726961440657,-500.0,0.00016273,2]
[338869282,1726961440666,-500.0,0.00016273,2]
[338869284,1726961440675,-500.0,0.00016273,2]
[338869286,1726961440685,-3000.0,0.0001628,2]
[338869288,1726961440694,-3000.0,0.0001629,2]
[338869290,1726961440704,-4380.046929,0.000163,2]
[338869292,1726961440713,-300.0,0.000163,6]
[338869294,1726961440723,-208.8866586,0.000163,2]
[338869296,1726961440733,-21632.5619167,0.00016303,2]
[338869298,1726961440742,-687.16178375,0.00016303,2]
[338869300,1726961440751,-151.0,0.00016303,2]
[338869303,1726961440762,-500.0,0.00016312,2]
[338869305,1726961440772,-500.0,0.00016312,2]
[338869307,1726961440782,-500.0,0.00016312,2]
[338869309,1726961440791,-500.0,0.00016313,2]
[338869311,1726961440801,-500.0,0.00016313,2]
[338869313,1726961440811,-820.19,0.00016313,2]
[338869314,1726961440820,-500.0,0.00016313,2]
[338869316,1726961440830,-500.0,0.00016313,2]
[338869318,1726961440839,-500.0,0.00016313,2]
[338869320,1726961440849,-500.0,0.00016313,2]
[338869322,1726961440858,-517.05312357,0.00016313,2]
[338869324,1726961440868,-500.0,0.00016313,2]
[338869326,1726961440880,-151.0,0.00016313,2]
[338869329,1726961440890,-151.0,0.00016313,2]
[338869331,1726961440899,-1000.0,0.000164,2]
[338869333,1726961440909,-998.90120867,0.00016409,2]
[338869335,1726961440919,-309.47766963,0.00016409,2]
[338869337,1726961440928,-151.0,0.00016409,2]
[338869338,1726961440938,-151.0,0.00016409,2]
[338869341,1726961440947,-151.0,0.00016409,2]
[338869343,1726961440957,-151.0,0.00016409,2]
[338869345,1726961440966,-151.0,0.00016409,2]
[338869347,1726961440976,-151.0,0.00016409,2]
[338869349,1726961440985,-200.0,0.00016438,2]
[338869351,1726961440994,-200.0,0.00016438,2]
[338869353,1726961441003,-500.0,0.00016545,2]
[338869355,1726961441012,-1434.6,0.00016545,2]
[338869357,1726961441022,-500.0,0.00016545,2]
[338869359,1726961441031,-500.0,0.00016546,2]
[338869360,1726961441040,-640.26,0.00016546,2]
[338869362,1726961441049,-510.9,0.00016546,2]
[338869364,1726961441058,-500.0,0.00016547,2]
[338869366,1726961441067,-688.9,0.00016547,2]
[338869368,1726961441077,-635.26,0.00016547,2]
[338869370,1726961441086,-500.0,0.00016586,2]
[338869372,1726961441095,-588.68,0.00016586,2]
[338869374,1726961441104,-500.0,0.00016586,2]
[338869376,1726961441114,-500.0,0.00016587,2]
[338869378,1726961441125,-200.0,0.00016587,2]
[338869380,1726961441135,-820.19,0.00016587,2]
[338869382,1726961441144,-372.31647369,0.00016587,2]
[338869385,1726961441154,-500.0,0.00016587,2]
[338869387,1726961441164,-500.0,0.00016587,2]
[338869389,1726961441173,-500.0,0.00016587,2]
[338869391,1726961441182,-500.0,0.00016587,2]
[338869393,1726961441191,-11490.40257014,0.0001678,2]
[338869591,1726961442821,-266.42737063,0.0001678,2]
[338869690,1726961445861,-461.34111712,0.00016779,2]
[338869699,1726962586792,4540.1368868,0.00013585,2]
[338869700,1726962586821,20349.8631132,0.00013585,2]
[338869743,1726962631936,-241.840761,0.00014253,2]
[338869745,1726962631946,-241.840761,0.00014293,2]
[338869747,1726962631955,-241.840761,0.00014332,2]
[338869749,1726962631964,-241.840761,0.00014371,2]
[338869751,1726962631973,-241.840761,0.0001441,2]
[338869753,1726962631982,-241.840761,0.00014449,2]
[338869755,1726962631991,-241.840761,0.00014488,2]
[338869757,1726962632001,-241.840761,0.00014527,2]
[338869759,1726962632011,-241.840761,0.00014566,2]
[338869761,1726962632020,-241.840761,0.00014605,2]
[338869763,1726962632029,-241.840761,0.00014644,2]
[338869765,1726962632038,-254.28686878,0.00014662,2]
[338869767,1726962632047,-241.840761,0.00014683,2]
[338869769,1726962632056,-266.7338783,0.00014688,2]
[338869771,1726962632065,-241.840761,0.00014723,2]
[338869773,1726962632074,-300.0,0.00014735,2]
[338869775,1726962632083,-300.0,0.00014735,2]
[338869777,1726962632092,-500.0,0.00014736,2]
[338869779,1726962632102,-500.0,0.00014736,2]
[338869781,1726962632111,-500.0,0.00014736,2]
[338869783,1726962632123,-500.0,0.00014736,2]
[338869785,1726962632132,-500.0,0.00014736,2]
[338869787,1726962632141,-500.0,0.00014736,2]
[338869789,1726962632151,-1374.82,0.00014736,2]
[338869791,1726962632160,-500.0,0.00014736,2]
[338869793,1726962632169,-241.840761,0.00014762,2]
[338869796,1726962632182,-241.840761,0.00014801,2]
[338869798,1726962632191,-241.840761,0.0001484,2]
[338869800,1726962632200,-241.840761,0.00014879,2]
[338869802,1726962632209,-241.840761,0.00014918,2]
[338869804,1726962632218,-241.840761,0.00014957,2]